bitfinex/quotes_SOLUSD_20250123
["timestamp","ask_amount","ask_price","bid_price","bid_amount"]
[1737598948816,0.063,248.25,248.24,23.776884]
[1737598949024,0.063,248.41,248.27,20.0]
[1737598949223,14.0264,248.36,248.21,0.60395534]
[1737598949424,14.0264,248.36,248.15,25.46950259]
[1737598949721,14.0264,248.36,248.18,20.0]
[1737598949922,14.0264,248.36,248.22,20.0]
[1737598950119,14.0264,248.36,248.26,20.0]
[1737598950337,10.0,248.36,248.26,20.0]
[1737598950711,10.0,248.36,248.27,24.38085896]
[1737598951638,14.0265,248.36,248.2,0.60394299]
[1737598951836,14.0265,248.36,248.23,27.805384]
[1737598952041,14.0265,248.36,248.23,28.4093632]
[1737598952342,10.0,248.36,248.35,312.0]
[1737598953548,10.0,248.36,248.23,4.0285]
[1737598953749,10.0,248.36,248.24,0.60396732]
[1737598953917,14.0264,248.36,248.24,0.60396732]
[1737598954122,14.0264,248.36,248.17,4.0294]
[1737598954934,24.0924,248.36,248.18,43.776884]
[1737598955136,24.0924,248.36,248.19,4.0291]
[1737598955519,24.0924,248.36,248.2,20.0]
[1737598955717,7.5,248.32,248.15,2.4134]
[1737598956026,0.70203805,248.31,248.09,4.0307]
[1737598956225,0.70203805,248.31,248.1,20.0]
[1737598956436,0.70203805,248.31,248.2,312.0]
[1737598956739,7.5,248.29,248.07,16.1363]
[1737598956938,0.70203805,248.28,248.07,16.1363]
[1737598957328,4.0278,248.27,248.1,7.5]
[1737598957634,4.0278,248.27,248.15,20.0]
[1737598958137,4.0278,248.27,248.16,0.60421526]
[1737598958343,4.027,248.32,248.17,23.776884]
[1737598958644,14.0265,248.36,248.22,20.0]
[1737598958941,10.0,248.36,248.24,23.776884]
[1737598959139,10.0,248.36,248.25,2.4643]
[1737598959336,10.0,248.36,248.28,20.0]
[1737598959639,14.0264,248.36,248.17,2.4643]
[1737598959843,14.0264,248.36,248.33,312.0]
[1737598960254,14.0264,248.36,248.21,20.0]
[1737598960550,14.0264,248.36,248.22,23.776884]
[1737598961354,14.0264,248.36,248.25,20.0]
[1737598961730,10.0,248.36,248.25,24.0281]
[1737598962928,14.0264,248.36,248.25,24.0281]
[1737598963129,14.0264,248.36,248.25,336.0911]
[1737598963463,14.0564,248.36,248.25,24.0911]
[1737598964527,14.0564,248.36,248.25,0.063]
[1737598964858,10.03,248.36,248.25,0.063]
[1737598965032,10.03,248.36,248.26,23.776884]
[1737598965231,10.03,248.36,248.29,20.0]
[1737598965425,10.03,248.36,248.28,4.0277]
[1737598966054,10.03,248.36,248.25,0.063]
[1737598966229,14.0565,248.36,248.25,0.063]
[1737598967451,24.1225,248.36,248.25,0.063]
[1737598967635,0.70203805,248.35,248.25,0.063]
[1737598968654,24.1225,248.36,248.25,0.063]
[1737598968853,14.0565,248.36,248.25,0.063]
[1737598969233,10.03,248.36,248.25,0.063]
[1737598969435,10.03,248.36,248.25,4.0911]
[1737598969829,14.0564,248.36,248.25,0.063]
[1737598971457,24.82443805,248.36,248.25,0.063]
[1737598974366,3.2967,248.35,248.25,0.063]
[1737598974683,0.70203805,248.34,248.25,0.063]
[1737598975390,10.03,248.36,248.25,0.063]
[1737598975675,10.03,248.36,248.25,4.091]
[1737598975968,14.0564,248.36,248.25,0.063]
[1737598977255,24.1224,248.36,248.25,0.063]
[1737598978567,0.70203805,248.35,248.25,0.063]
[1737598979073,8.20203805,248.35,248.25,0.063]
[1737598979449,13.20203805,248.35,248.25,0.063]
[1737598979868,7.5,248.33,248.25,0.063]
[1737598980069,0.70203805,248.32,248.25,0.063]
[1737598980265,14.0952,248.31,248.25,0.063]
[1737598980579,7.5,248.29,248.25,0.0001]
[1737598980759,12.5,248.26,248.03,2.364]
[1737598981074,0.70203805,248.28,248.08,20.0]
[1737598981378,9.1967,248.3,248.1,43.776884]
[1737598981569,9.1967,248.3,248.11,0.60427122]
[1737598981766,9.1967,248.3,248.14,20.0]
[1737598981978,9.89873805,248.3,248.14,20.0]
[1737598982271,17.39873805,248.3,248.03,21.33791385]
[1737598982479,14.0963,248.29,248.06,20.0]
[1737598982784,7.5,248.27,248.03,6.3956]
[1737598982948,7.5,248.25,248.06,20.0]
[1737598983151,0.70203805,248.24,248.06,20.0]
[1737598983352,0.70203805,248.24,248.03,6.3956]
[1737598983785,7.5,248.22,248.03,2.364]
[1737598984085,7.5,248.15,248.0,0.063]
[1737598984388,14.1054,248.13,248.0,0.063]
[1737598984554,0.70203805,248.12,248.0,0.063]
[1737598985071,14.80743805,248.13,248.0,0.063]
[1737598985272,4.029,248.2,248.04,20.0]
[1737598985474,4.029,248.2,248.08,20.0]
[1737598985786,4.0287,248.22,248.08,20.60439585]
[1737598986370,4.0287,248.22,248.09,4.0307]
[1737598986885,0.70203805,248.21,248.01,4.032]
[1737598987458,0.70203805,248.21,248.0,20.063]
[1737598987666,7.5,248.2,248.0,0.063]
[1737598987988,0.70203805,248.19,248.0,0.063]
[1737598988160,3.0643,248.14,248.0,0.063]
[1737598988367,14.1065,248.11,248.0,0.063]
[1737598988594,0.70203805,248.1,248.0,0.063]
[1737598988894,14.1065,248.11,248.0,0.063]
[1737598989100,0.70203805,248.1,248.0,0.063]
[1737598989291,20.0,248.08,248.0,0.063]
[1737598989609,20.0,248.04,248.0,0.0001]
[1737598989765,0.70203805,248.03,248.0,0.0001]
[1737598989971,12.5,247.99,247.77,4.0359]
[1737598990282,7.5,247.97,247.79,20.0]
[1737598990593,14.1156,247.95,247.76,9.1163]
[1737598990800,0.70203805,247.94,247.76,9.1163]
[1737598991280,0.70203805,247.94,247.76,13.1523]
[1737598991696,0.70203805,247.94,247.76,325.1523]
[1737598992292,4.0333,247.93,247.76,325.1523]
[1737598993005,4.0333,247.93,247.79,20.0]
[1737598993593,14.1167,247.93,247.79,20.0]
[1737598993791,14.81873805,247.93,247.76,9.1163]
[1737598994101,14.81873805,247.93,247.75,2.458]
[1737598995299,14.818738,247.92,247.75,2.458]
[1737598995504,14.82003805,247.91,247.75,2.458]
[1737598996189,14.82003805,247.91,247.75,314.458]
[1737598996495,14.82003805,247.91,247.75,312.063]
[1737598996697,7.5,247.86,247.75,0.063]
[1737598996909,0.70203805,247.85,247.75,0.063]
[1737598997704,4.0348,247.84,247.75,0.063]
[1737598998873,0.70203805,247.89,247.75,0.063]
[1737598999078,14.82113805,247.89,247.75,0.063]
[1737598999513,22.32113805,247.89,247.75,0.063]
[1737598999895,4.034,247.89,247.76,20.0]
[1737599000076,4.0327,247.97,247.77,0.6051644]
[1737599000279,14.1145,247.97,247.78,20.0]
[1737599000586,14.1145,247.97,247.82,20.0]
[1737599000587,4.0327,247.97,247.82,20.0]
[1737599001007,4.0324,247.99,247.83,4.035]
[1737599001182,4.0324,247.99,247.83,6.4356]
[1737599001503,4.0324,247.99,247.87,20.0]
[1737599002805,4.0317,248.03,247.88,0.60494631]
[1737599002986,4.0312,248.06,247.89,4.034]
[1737599003182,0.70203805,248.05,247.83,2.4006]
[1737599003625,0.70203805,248.05,247.84,20.0]
[1737599003817,0.70203805,248.05,247.86,20.0]
[1737599004527,17.579,248.04,247.83,2.4006]
[1737599004819,8.20203805,248.03,247.83,2.4006]
[1737599005036,0.70203805,248.03,247.83,2.4006]
[1737599005201,0.70203805,248.03,247.83,6.4355]
[1737599006208,0.70203805,248.03,247.83,318.4355]
[1737599006511,14.1117,248.02,247.83,318.4355]
[1737599006705,14.1117,248.02,247.87,20.0]
[1737599007127,14.1117,248.02,247.88,23.776884]
[1737599007294,4.0319,248.02,247.89,0.60492318]
[1737599007499,4.0312,248.06,247.9,23.776884]
[1737599007700,4.0312,248.06,247.91,0.60479825]
[1737599007930,4.0303,248.12,247.95,20.0]
[1737599008307,4.03,248.14,247.99,20.0]
[1737599008515,4.03,248.14,247.99,20.60463108]
[1737599008903,4.0291,248.19,248.03,20.0]
[1737599009125,4.0291,248.19,248.03,20.60451628]
[1737599009329,4.0284,248.24,248.07,20.0]
[1737599009623,12.23043805,248.24,248.07,312.0]
[1737599009797,4.73043805,248.24,248.07,312.0]
[1737599010217,4.73043805,248.24,248.07,316.031]
[1737599010414,4.0284,248.24,248.1,20.0]
[1737599010722,4.0284,248.24,248.07,316.031]
[1737599010915,8.20203805,248.23,248.07,312.0]
[1737599011222,8.20203805,248.23,247.95,9.5288]
[1737599011422,8.20203805,248.23,247.98,22.4006]
[1737599011719,8.20203805,248.23,248.02,20.0]
[1737599012109,4.0286,248.22,248.02,20.0]
[1737599012308,0.70203805,248.21,248.02,20.0]
[1737599012525,4.0286,248.22,248.03,0.6045317]
[1737599012823,4.0286,248.22,248.06,20.0]
[1737599013599,14.80233805,248.22,248.02,4.0318]
[1737599014015,14.80233805,248.22,248.06,20.0]
[1737599015134,14.1003,248.22,248.06,24.0311]
[1737599015508,4.0286,248.22,248.07,0.60444724]
[1737599016333,4.0286,248.22,248.11,20.0]
[1737599017104,0.03,248.26,248.12,4.63466677]
[1737599017324,0.03,248.26,248.12,24.63466677]
[1737599017529,0.03,248.26,248.2,20.0]
[1737599017729,0.03,248.26,248.21,0.60414737]
[1737599018029,0.03,248.26,248.25,20.0]
[1737599018228,0.03,248.26,248.15,0.60405899]
[1737599018425,0.03,248.26,248.17,312.0]
[1737599019013,0.03,248.26,248.21,43.776884]
[1737599019236,0.03,248.26,248.22,4.63261438]
[1737599019544,0.03,248.26,248.25,43.776884]
[1737599019738,0.03,248.26,248.25,44.3808245]
[1737599021014,0.03,248.26,248.25,20.6039405]
[1737599021555,0.03,248.26,248.25,4.6320405]
[1737599022246,0.03,248.26,248.25,316.6320405]
[1737599022544,0.03,248.26,248.25,339.804984]
[1737599022740,0.03,248.26,248.25,27.804984]
[1737599023049,0.03,248.26,248.25,28.40891287]
[1737599023913,0.03,248.26,248.17,9.5542]
[1737599024119,0.03,248.26,248.19,4.0291]
[1737599024342,0.03,248.26,248.18,4.86291385]
[1737599024645,0.03,248.26,248.17,13.5836]
[1737599024846,0.03,248.26,248.2,20.0]
[1737599025146,0.03,248.26,248.17,13.5836]
[1737599025526,0.03,248.26,248.2,20.0]
[1737599025833,0.03,248.26,248.12,4.0302]
[1737599026038,0.03,248.26,248.13,16.9624309]
[1737599026251,0.03,248.26,248.14,23.776884]
[1737599026447,0.03,248.26,248.16,23.776884]
[1737599026653,5.0,248.56,248.22,2.2528]
[1737599026952,4.0886,248.41,248.23,5.46674254]
[1737599027242,4.0886,248.41,248.24,23.776884]
[1737599027547,4.0886,248.41,248.27,20.0]
[1737599027751,4.0886,248.41,248.28,4.0277]
[1737599028344,4.0886,248.41,248.26,20.0]
[1737599028541,4.0886,248.41,248.24,4.0282]
[1737599028924,4.0886,248.41,248.26,312.0]
[1737599029225,4.0886,248.41,248.29,20.0]
[1737599029633,0.063,248.41,248.31,20.0]
[1737599029844,4.0257,248.4,248.31,20.0]
[1737599030232,4.0257,248.4,248.26,4.0279]
[1737599030547,4.0257,248.4,248.27,20.0]
[1737599031229,4.0257,248.4,248.27,48.40865352]
[1737599031429,4.0257,248.4,248.28,23.776884]
[1737599031752,4.0257,248.4,248.27,4.0278]
[1737599032248,4.0257,248.4,248.28,20.0]
[1737599032452,4.0257,248.4,248.29,312.0]
[1737599033925,0.063,248.41,248.33,4.0268]
[1737599034138,0.063,248.41,248.35,20.0]
[1737599034758,0.063,248.41,248.39,20.0]
[1737599034928,0.063,248.41,248.36,24.38065598]
[1737599034929,0.063,248.41,248.33,4.63051807]
[1737599035256,0.03,248.4,248.37,20.0]
[1737599036122,0.03,248.4,248.32,4.0269]
[1737599036551,0.03,248.4,248.34,23.776884]
[1737599036851,0.03,248.4,248.32,24.0269]
[1737599037040,0.03,248.4,248.37,20.0]
[1737599037829,0.03,248.4,248.34,312.0]
[1737599038030,0.03,248.4,248.24,10.0708]
[1737599038450,0.03,248.4,248.25,23.776884]
[1737599038955,0.03,248.4,248.25,4.0281]
[1737599039332,0.03,248.4,248.25,24.0281]
[1737599039532,0.03,248.4,248.27,20.0]
[1737599040226,0.03,248.4,248.27,24.0277]
[1737599040861,6.88303805,248.46,248.27,24.0277]
[1737599041069,23.776884,248.48,248.3,312.0]
[1737599041844,20.1222,248.49,248.3,316.0272]
[1737599042049,14.0844,248.5,248.33,20.0]
[1737599042249,14.0844,248.5,248.37,20.0]
[1737599042250,4.0241,248.5,248.37,20.0]
[1737599042448,4.0241,248.5,248.38,0.60371492]
[1737599042856,0.03,248.51,248.42,20.0]
[1737599043174,0.03,248.51,248.46,20.0]
[1737599043350,0.03,248.51,248.47,0.60348117]
[1737599043981,0.03,248.51,248.5,47.800984]
[1737599044271,0.03,248.61,248.52,4.99998874]
[1737599044477,0.03,248.61,248.53,0.60309588]
[1737599044639,0.03,248.61,248.5,15.8311]
[1737599044970,0.03,248.61,248.54,20.0]
[1737599045278,0.03,248.61,248.58,312.0]
[1737599045774,0.03,248.61,248.54,20.0]
[1737599045955,0.03,248.61,248.54,20.60327807]
[1737599046758,0.03,248.61,248.58,20.0]
[1737599047088,0.03,248.61,248.56,0.6032186]
[1737599047374,0.03,248.61,248.5,11.807]
[1737599047873,0.03,248.61,248.5,2.2528]
[1737599048169,0.03,248.61,248.45,23.776884]
[1737599048564,0.03,248.61,248.47,312.0]
[1737599049999,0.03,248.61,248.48,20.0]
[1737599050198,0.03,248.61,248.52,20.0]
[1737599050405,0.03,248.61,248.53,0.60330462]
[1737599050867,0.03,248.61,248.57,20.0]
[1737599051071,0.03,248.61,248.58,0.60332241]
[1737599051288,0.03,248.61,248.6,20.0]
[1737599051790,0.03,248.61,248.59,20.0]
[1737599052168,0.03,248.61,248.6,23.776884]
[1737599052494,0.03,248.61,248.6,2.82120348]
[1737599052795,0.03,248.61,248.6,338.59808748]
[1737599052970,0.03,248.61,248.6,337.994984]
[1737599053300,5.063,248.64,248.63,20.0]
[1737599054392,5.063,248.64,248.62,20.0]
[1737599054594,5.063,248.64,248.63,20.0]
[1737599054794,5.063,248.64,248.6,2.2181]
[1737599054997,5.063,248.64,248.62,20.0]
[1737599057279,5.063,248.64,248.6,312.0]
[1737599057484,5.063,248.64,248.55,4.0232]
[1737599057795,5.063,248.64,248.56,20.0]
[1737599058578,5.063,248.64,248.56,24.0231]
[1737599058797,5.063,248.64,248.6,20.0]
[1737599059704,5.063,248.64,248.63,20.0]
[1737599059997,5.063,248.64,248.63,44.37996511]
[1737599060497,5.063,248.64,248.63,356.37996511]
[1737599060699,5.063,248.64,248.63,359.798884]
[1737599062002,4.0186,248.84,248.64,2.1972]
[1737599062170,14.0652,248.84,248.67,20.0]
[1737599063072,20.0,248.83,248.65,0.60297804]
[1737599063273,23.776884,248.81,248.64,2.1972]
[1737599064300,23.776884,248.81,248.63,4.022]
[1737599064301,20.0,248.78,248.63,4.022]
[1737599064509,23.776884,248.75,248.57,4.023]
[1737599064676,23.776884,248.75,248.59,20.0]
[1737599064876,1.818,248.76,248.59,20.0]
[1737599065285,1.818,248.76,248.6,312.0]
[1737599065478,23.776884,248.78,248.6,312.0]
[1737599065705,14.0674,248.8,248.6,312.0]
[1737599065907,14.0674,248.8,248.6,20.0]
[1737599066416,14.0674,248.8,248.62,20.0]
[1737599066902,14.0674,248.8,248.63,4.022]
[1737599067502,4.0192,248.8,248.67,20.0]
[1737599067809,4.019,248.82,248.68,0.60295902]
[1737599068686,10.0464,248.85,248.68,0.60295902]
[1737599068997,23.776884,248.84,248.59,15.08915135]
[1737599069198,23.776884,248.84,248.59,10.65952329]
[1737599069592,23.776884,248.84,248.62,20.0]
[1737599070111,20.0916,248.86,248.62,20.0]
[1737599070300,10.047,248.83,248.64,20.0]
[1737599070512,10.047,248.83,248.64,44.37989185]
[1737599070807,23.776884,248.82,248.68,20.0]
[1737599071001,10.047,248.83,248.68,20.0]
[1737599071319,0.03,248.8,248.72,20.0]
[1737599071606,0.03,248.8,248.73,0.60289043]
[1737599071809,0.03,248.8,248.72,20.0]
[1737599072002,0.03,248.8,248.76,312.0]
[1737599073216,0.03,248.8,248.72,24.0205]
[1737599073217,0.03,248.8,248.72,20.0]
[1737599073616,0.03,248.8,248.66,20.0]
[1737599073981,0.03,248.8,248.64,4.0218]
[1737599074386,0.03,248.8,248.66,20.0]
[1737599074887,0.03,248.8,248.67,23.776884]
[1737599075084,0.03,248.8,248.7,20.0]
[1737599075498,0.03,248.8,248.67,20.0]
[1737599076015,0.03,248.8,248.72,20.0]
[1737599076215,0.03,248.8,248.75,312.0]
[1737599076813,0.03,248.8,248.78,20.0]
[1737599077017,0.03,248.8,248.76,20.60281642]
[1737599077918,0.03,248.8,248.79,20.0]
[1737599078106,0.063,248.87,248.85,20.0]
[1737599078728,0.063,248.87,248.86,24.37944759]
[1737599079302,4.0169,249.05,248.86,24.37944759]
[1737599079608,4.0154,249.04,248.93,20.0]
[1737599079808,4.4379,249.06,249.03,312.0]
[1737599080410,4.4379,249.06,248.93,24.0171]
[1737599080932,0.4228,249.06,248.98,23.776884]
[1737599081131,0.4228,249.06,249.01,20.0]
[1737599081311,0.4228,249.06,249.02,0.60217176]
[1737599081927,0.4228,249.06,249.05,43.776884]
[1737599082145,0.4228,249.06,249.05,44.37892118]
[1737599082433,0.4228,249.06,249.05,48.39412118]
[1737599083231,0.4528,249.06,249.05,48.39412118]
[1737599083410,0.4528,249.06,249.05,360.39412118]
[1737599083742,0.4528,249.06,249.05,332.0]
[1737599085003,0.4528,249.06,249.05,336.0152]
[1737599085224,0.4528,249.06,249.05,359.792084]
[1737599085635,5.0,249.1,249.05,359.792084]
[1737599085833,5.0,249.18,249.14,20.0]
[1737599086045,4.0133,249.17,249.06,9.0189]
[1737599086338,4.0133,249.17,249.05,20.0]
[1737599086648,4.0133,249.17,249.06,20.0]
[1737599086817,5.0,249.18,249.06,20.0]
[1737599087023,5.0,249.18,249.03,2.2368]
[1737599087223,4.0133,249.17,249.03,2.2368]
[1737599087436,23.776884,249.16,248.99,13.035]
[1737599087739,23.776884,249.16,248.99,9.0189]
[1737599087941,14.0466,249.17,249.0,4.016]
[1737599088120,20.0,249.14,248.96,4.0166]
[1737599088439,20.0,249.12,248.92,9.0189]
[1737599088613,14.0499,249.11,248.95,20.0]
[1737599088941,23.776884,249.1,248.98,312.0]
[1737599089141,23.776884,249.06,248.98,312.0]
[1737599090533,23.776884,249.06,248.87,2.2368]
[1737599090740,23.776884,249.04,248.89,20.0]
[1737599091742,4.0152,249.05,248.87,26.2548]
[1737599091930,4.0152,249.05,248.91,20.0]
[1737599092845,4.0147,249.08,248.95,20.0]
[1737599093019,23.776884,249.07,248.95,20.0]
[1737599093347,23.776884,249.07,248.91,20.0]
[1737599093544,23.776884,249.07,249.01,312.0]
[1737599093741,23.776884,249.07,248.91,20.0]
[1737599094241,4.015,249.06,248.91,20.0]
[1737599094426,4.015,249.06,248.95,20.0]
[1737599094824,1.9875,249.09,248.95,20.0]
[1737599095021,4.0141,249.12,248.99,20.0]
[1737599096325,4.0136,249.15,248.99,20.0]
[1737599096526,14.0477,249.15,248.99,20.0]
[1737599096729,23.776884,249.14,249.07,312.0]
[1737599097121,23.776884,249.14,248.92,4.0173]
[1737599097434,23.776884,249.1,248.92,4.0173]
[1737599098428,4.0146,249.09,248.94,20.0]
[1737599098844,4.0146,249.09,248.92,4.0173]
[1737599099623,4.0146,249.09,248.94,20.0]
[1737599100148,4.0146,249.09,249.0,312.0]
[1737599100942,23.776884,249.08,249.0,312.0]
[1737599101249,4.0146,249.09,249.0,312.0]
[1737599101448,4.0146,249.09,248.91,0.063]
[1737599101651,23.776884,249.08,248.93,4.0171]
[1737599102027,23.776884,249.1,248.93,4.0171]
[1737599102228,23.776884,249.1,248.91,4.0804]
[1737599102629,23.776884,249.08,248.91,0.063]
[1737599103425,23.776884,249.1,248.91,0.063]
[1737599103622,14.0522,249.07,248.91,0.063]
[1737599104126,20.0,249.03,248.91,0.063]
[1737599104357,1.9875,249.01,248.91,0.063]
[1737599104673,23.776884,248.98,248.91,0.063]
[1737599104956,20.0,248.96,248.91,0.063]
[1737599105338,20.0,248.92,248.91,0.063]
[1737599105531,43.776884,248.92,248.91,0.063]
[1737599105731,23.776884,248.91,248.75,0.063]
[1737599106130,23.776884,248.91,248.76,20.0]
[1737599106336,23.776884,248.91,248.75,0.063]
[1737599107338,23.776884,248.91,248.8,312.0]
[1737599107547,34.0606,248.92,248.8,312.0]
[1737599107548,23.776884,248.87,248.8,312.0]
[1737599108059,4.0183,248.86,248.8,312.0]
[1737599108240,4.0183,248.86,248.75,0.063]
[1737599108241,23.776884,248.81,248.75,0.063]
[1737599108655,23.776884,248.77,248.75,0.063]
[1737599109151,23.776884,248.77,248.61,0.063]
[1737599109352,23.776884,248.73,248.61,0.063]
[1737599109571,20.0,248.66,248.61,0.063]
[1737599109875,47.798384,248.66,248.61,0.063]
[1737599110060,47.798384,248.66,248.65,0.0001]
[1737599110377,28.776884,248.65,248.61,0.0001]
[1737599110545,43.776884,248.62,248.61,0.0001]
[1737599111271,20.0,248.54,248.42,2.1995]
[1737599111456,23.776884,248.53,248.42,2.1995]
[1737599111652,23.776884,248.49,248.4,0.063]
[1737599111858,23.776884,248.47,248.4,0.063]
[1737599112068,4.0234,248.54,248.4,0.063]
[1737599112451,20.0,248.52,248.4,0.063]
[1737599113478,23.776884,248.51,248.4,0.063]
[1737599113872,47.800684,248.52,248.4,0.063]
[1737599114186,27.800684,248.52,248.4,0.063]
[1737599114349,23.776884,248.48,248.4,0.063]
[1737599116278,23.776884,248.46,248.4,0.063]
[1737599117572,20.0,248.43,248.4,0.063]
[1737599117768,23.776884,248.37,248.27,0.063]
[1737599117963,23.776884,248.33,248.27,0.063]
[1737599118174,23.776884,248.31,248.27,0.063]
[1737599118753,9.3314,248.3,248.27,0.063]
[1737599119161,23.776884,248.29,248.27,0.063]
[1737599119864,23.776884,248.29,248.13,9.1608]
[1737599119865,23.776884,248.25,248.13,9.1608]
[1737599120056,4.0283,248.24,248.13,9.1608]
[1737599120264,23.776884,248.23,248.13,9.1608]
[1737599120652,23.776884,248.23,248.2,312.0]
[1737599120853,23.776884,248.23,248.13,0.063]
[1737599121647,4.0275,248.29,248.14,4.0299]
[1737599122374,43.776884,248.26,248.14,4.0299]
[1737599122751,4.0275,248.29,248.15,20.0]
[1737599122971,4.0271,248.32,248.15,20.0]
[1737599123190,13.3588,248.3,248.15,20.0]
[1737599123876,13.3588,248.3,248.23,312.0]
[1737599125657,20.0,248.26,248.13,0.063]
[1737599125872,23.776884,248.23,248.13,0.063]
[1737599126396,23.776884,248.21,248.13,0.063]
[1737599126682,20.0,248.22,248.13,0.063]
[1737599126881,20.0,248.21,248.13,0.063]
[1737599127090,31.276884,248.25,248.13,0.063]
[1737599127380,5.0,248.42,248.13,4.0931]
[1737599127679,4.0256,248.41,248.19,20.0]
[1737599127973,13.3568,248.42,248.19,20.0]
[1737599128177,9.3314,248.42,248.2,0.60403751]
[1737599128475,9.3314,248.42,248.28,20.0]
[1737599128778,13.3569,248.42,248.16,9.0978]
[1737599128977,13.3569,248.42,248.19,20.0]
[1737599129182,23.776884,248.41,248.23,20.0]
[1737599129471,23.776884,248.41,248.18,4.0293]
[1737599129472,14.0901,248.4,248.18,4.0293]
[1737599129680,20.0,248.37,248.18,4.0293]
[1737599129853,23.776884,248.36,248.19,20.0]
[1737599130675,4.0256,248.41,248.2,57.878384]
[1737599130879,4.025,248.45,248.25,20.0]
[1737599131193,5.0,248.39,248.21,2.1757]
[1737599131561,20.0,248.4,248.22,20.0]
[1737599131881,5.0,248.44,248.22,332.0]
[1737599132267,5.0,248.44,248.25,0.063]
[1737599132466,23.776884,248.39,248.25,0.063]
[1737599132872,23.776884,248.37,248.25,0.063]
[1737599133578,23.776884,248.34,248.25,0.063]
[1737599133886,4.026,248.38,248.25,4.0911]
[1737599134257,23.776884,248.37,248.25,0.063]
[1737599135462,20.0,248.32,248.25,0.063]
[1737599135677,23.776884,248.31,248.25,0.063]
[1737599136874,4.0273,248.3,248.25,0.063]
[1737599138183,20.0,248.32,248.25,0.063]
[1737599138479,4.0271,248.32,248.25,0.063]
[1737599139378,5.58,248.35,248.25,4.0911]
[1737599140086,20.0,248.38,248.25,4.0911]
[1737599140772,23.776884,248.38,248.25,4.0911]
[1737599140961,0.03,248.48,248.32,20.0]
[1737599141161,4.025,248.45,248.33,6.3211]
[1737599141677,7.0377,248.48,248.36,20.0]
[1737599141985,0.03,248.48,248.4,20.0]
[1737599142479,0.03,248.48,248.4,332.0]
[1737599143573,0.03,248.48,248.41,24.38063517]
[1737599143773,0.03,248.48,248.44,20.0]
[1737599143979,10.0537,248.67,248.48,20.0]
[1737599144179,4.0215,248.66,248.52,20.0]
[1737599144379,9.5812,248.68,248.53,2.89768113]
[1737599144886,16.07761,248.67,248.53,2.2943]
[1737599145084,5.56,248.68,248.58,20.0]
[1737599145261,4.0505,248.73,248.58,20.60328185]
[1737599145888,0.03,248.73,248.63,8.6343]
[1737599146266,4.0505,248.73,248.64,2.2943]
[1737599146682,4.0505,248.73,248.64,314.2943]
[1737599147191,0.03,248.73,248.64,314.2943]
[1737599147375,23.806884,248.73,248.64,2.2943]
[1737599149370,14.0719,248.72,248.64,2.2943]